[Event "Sardinia World Festival-A 2024"]
[Site "Orosei"]
[Date "2024.04.29"]
[Round "3.14"]
[White "Murzin, Volodar"]
[Black "Aizenberg, Benny"]
[Result "1/2-1/2"]
[ECO "B90"]
[WhiteElo "2632"]
[BlackElo "2409"]
[Annotator "TA"]
[PlyCount "229"]
[EventDate "2024.04.26"]
[EventType "swiss"]
[EventCountry "ITA"]
[SourceTitle "playchess.com"]
[Source "ChessBase"]
[SourceQuality "1"]
[TimeControl "40/5400+30:1800+30"]

{[%evp 124,229,68,68,68,68,68,68,68,68,68,68,68,68,68,68,68,68,68,68,68,68,68,68,68,68,68,68,68,68,68,68,68,68,68,68,68,68,68,68,68,68,68,68,68,68,68,68,68,68,66,66,66,49,49,49,49,49,49,49,49,49,49,56,56,40,40,0,0,0,0,0,0,0,0,0,0,0,0,0,0,0,0,0,0,0,0,0,0,0,0,0,0,0,0,0,0,0,0,0,0,0,0,0,0,0,0,0]} 1. e4 {[%emt 0:00:03]} c5 {[%emt 0:00:06]} 2. Nf3 {[%emt 0:00:04]} d6 {[%emt 0:00:05]} 3. d4 {[%emt 0:00:03]} cxd4 {[%emt 0:00:04]} 4. Nxd4 {[%emt 0:00:04]} Nf6 {[%emt 0:00:06]} 5. Nc3 {[%emt 0:00:03]} a6 {[%emt 0:00:06]} 6. Be3 {[%emt 0:00:08]} e5 {[%emt 0:00:08]} 7. Nb3 {[%emt 0:00:48]} Be7 {[%emt 0:00:16]} 8. f3 {[%emt 0:00:49]} Be6 {[%emt 0:00:07]} 9. Qd2 {[%emt 0:00:41]} O-O {[%emt 0:00:11]} 10. O-O-O {[%emt 0:00:23]} Nbd7 {[%emt 0:00:32]} 11. g4 {[%emt 0:00:17]} b5 {[%emt 0:00:05]} 12. g5 {[%emt 0:00:11]} Nh5 {[%emt 0:00:05]} 13. Nd5 {[%emt 0:00:12]} Bxd5 {[%emt 0:01:32] B90: Sicilian Najdorf: Unusual White 6th moves, 6 Be3 Ng4 and 6 Be3 e5.} 14. exd5 {[%emt 0:00:07]} f6 {[%emt 0:05:47] 14...f6 is better than 14...f5.} 15. gxf6 {[%emt 0:00:21]} Bxf6 {[%emt 0:01:37]} 16. Na5 {[%emt 0:00:08]} g6 $146 {[%emt 0:11:03]} ({Predecessor:} 16... Qe8 17. Kb1 Bd8 18. Nb7 Bc7 19. Qc3 Qb8 20. Qc6 Rxf3 21. Bc1 Nhf6 22. Bg2 e4 23. Bxf3 {0-1 Aronian,L (2759)-Navara,D (2681) Julius Baer GenCup Prelim rapid 2022 (10)}) 17. Kb1 {[%emt 0:11:42]} Bg7 {[%emt 0:02:05]} 18. Nc6 {[%emt 0:14:19]} Qe8 {[%emt 0:00:23]} 19. Qb4 {[%emt 0:08:08]} Rxf3 {[%emt 0:08:59]} 20. Bc1 {[%emt 0:04:47]} Qf8 {[%emt 0:18:10]} 21. Be2 {[%emt 0:02:29]} Rf7 {[%emt 0:00:46]} 22. Bg4 {[%emt 0:19:52]} Nc5 {[%emt 0:02:35]} 23. Bxh5 {[%emt 0:03:14]} gxh5 {[%emt 0:00:13]} 24. Qh4 {[%emt 0:11:41]} Kh8 {[%emt 0:08:25]} 25. Qxh5 {[%emt 0:00:22]} Rf5 {[%emt 0:02:47]} 26. Qg4 {[%emt 0:00:15]} Qf7 {[%emt 0:02:28]} 27. Rhg1 {[%emt 0:03:22]} Rf8 {[%emt 0:09:19]} 28. Bg5 {[%emt 0:04:05]} e4 {[%emt 0:03:59]} 29. Be7 {[%emt 0:08:26]} Rg8 {[%emt 0:07:55]} 30. Bxd6 {[%emt 0:00:21]} Rxd5 {[%emt 0:15:36]} 31. Bxc5 {[%emt 0:07:00]} Rxc5 {[%emt 0:00:00]} 32. Qxe4 {[%emt 0:00:22]} Rc4 {[%emt 0:00:00]} 33. Qe7 {[%emt 0:01:12]} Qf6 {[%emt 0:00:00]} 34. Qxf6 {[%emt 0:00:37]} Bxf6 {[%emt 0:00:00]} 35. Rxg8+ {[%emt 0:00:16]} Kxg8 {[%emt 0:00:00]} 36. Rd6 {[%emt 0:00:39]} Kf7 {[%emt 0:00:00]} 37. a3 {[%emt 0:00:48]} Rh4 {[%emt 0:00:00]} 38. Rd2 {[%emt 0:00:01]} h5 {[%emt 0:00:00]} 39. c3 {[%emt 0:00:40]} Re4 {[%emt 0:00:00]} 40. Kc2 {[%emt 0:00:55]} h4 {[%emt 0:02:31]} 41. Nb4 {[%emt 0:03:14]} Re6 {[%emt 0:00:23]} 42. Kb3 {[%emt 0:02:29]} Bg5 {[%emt 0:06:46]} 43. Rf2+ {[%emt 0:06:08]} Ke8 {[%emt 0:06:13]} 44. a4 {[%emt 0:03:52]} Be7 {[%emt 0:02:00]} 45. axb5 {[%emt 0:05:28]} axb5 {[%emt 0:00:06]} 46. Nc2 {[%emt 0:00:02]} Re4 {[%emt 0:05:34]} 47. Rd2 {[%emt 0:00:23]} Re5 {[%emt 0:01:59]} 48. Nb4 {[%emt 0:04:59]} Bg5 {[%emt 0:04:27]} 49. Rd4 {[%emt 0:00:47]} Re2 {[%emt 0:01:10]} 50. h3 {[%emt 0:01:10]} Re3 {[%emt 0:00:12]} 51. Rd5 {[%emt 0:00:56]} Bf6 {[%emt 0:00:59]} 52. Rf5 {[%emt 0:00:45]} Bg7 {[%emt 0:00:45]} 53. Rxb5 {[%emt 0:01:28]} Rxh3 {[%emt 0:00:04]} 54. Kc4 {[%emt 0:00:42]} Rg3 {[%emt 0:00:40]} 55. Rh5 {[%emt 0:02:43]} Rg4+ {[%emt 0:00:11]} 56. Kd5 {[%emt 0:01:07]} Kf7 {[%emt 0:00:05]} 57. Rf5+ {[%emt 0:00:05]} Kg6 {[%emt 0:00:08]} 58. Rf1 {[%emt 0:00:26]} Rg3 {[%emt 0:03:17]} 59. Ke4 {[%emt 0:00:23]} Bxc3 {[%emt 0:01:34]} 60. bxc3 {[%emt 0:00:01]} Rxc3 {[%emt 0:00:08]} 61. Nd5 {[%emt 0:00:31]} Rg3 {[%emt 0:00:22]} 62. Rf5 {[%emt 0:00:42]} Ra3 {[%emt 0:02:01]} 63. Nf4+ {[%emt 0:00:14]} Kg7 {[%emt 0:00:04]} 64. Rh5 {[%emt 0:00:10]} h3 {[%emt 0:00:07]} 65. Nxh3 {[%emt 0:00:05]} Ra4+ {[%emt 0:00:03]} 66. Kf3 {[%emt 0:00:05]} Ra3+ {[%emt 0:00:15]} 67. Kg4 {[%emt 0:00:03]} Kf6 {[%emt 0:00:09]} 68. Nf4 {[%emt 0:00:05]} Ke7 {[%emt 0:00:19]} 69. Rd5 {[%emt 0:00:05]} Kf6 {[%emt 0:00:28]} 70. Rf5+ {[%emt 0:00:32]} Ke7 {[%emt 0:00:04]} 71. Re5+ {[%emt 0:00:03]} Kd6 {[%emt 0:00:07]} 72. Kf5 {[%emt 0:00:05]} Ra1 {[%emt 0:00:25]} 73. Rd5+ {[%emt 0:00:10]} Kc6 {[%emt 0:00:06]} 74. Rd2 {[%emt 0:00:18]} Re1 {[%emt 0:00:09]} 75. Nd3 {[%emt 0:00:12]} Rh1 {[%emt 0:00:14]} 76. Ke4 {[%emt 0:00:09]} Rh4+ {[%emt 0:00:21]} 77. Nf4 {[%emt 0:00:04]} Rh1 {[%emt 0:00:15]} 78. Ng2 {[%emt 0:00:02]} Kc5 {[%emt 0:00:11]} 79. Rd8 {[%emt 0:00:10]} Kc6 {[%emt 0:00:18]} 80. Ne3 {[%emt 0:00:07]} Rh7 {[%emt 0:00:29]} 81. Nf5 {[%emt 0:00:10]} Rh1 {[%emt 0:00:39]} 82. Nd4+ {[%emt 0:00:07]} Kc5 {[%emt 0:00:15]} 83. Rc8+ {[%emt 0:00:06]} Kd6 {[%emt 0:00:12]} 84. Rc6+ {[%emt 0:00:04]} Kd7 {[%emt 0:10:15]} 85. Rg6 {[%emt 0:00:15]} Rh5 {[%emt 0:00:00]} 86. Nf3 {[%emt 0:00:16]} Ke7 {[%emt 0:00:00]} 87. Ng5 {[%emt 0:00:11]} Rh1 {[%emt 0:00:00]} 88. Ke5 {[%emt 0:00:05]} Kd7 {[%emt 0:00:00]} 89. Ne4 {[%emt 0:01:26]} Rh5+ {[%emt 0:00:00]} 90. Kd4 {[%emt 0:00:03]} Ke7 {[%emt 0:00:00]} 91. Ra6 {[%emt 0:00:04]} Rh1 {[%emt 0:00:00]} 92. Ng3 {[%emt 0:00:09]} Re1 {[%emt 0:00:00]} 93. Kd5 {[%emt 0:00:07]} Rb1 {[%emt 0:00:00]} 94. Nf5+ {[%emt 0:00:20]} Kf7 {[%emt 0:00:00]} 95. Nh6+ {[%emt 0:00:26]} Ke7 {[%emt 0:00:00]} 96. Ng8+ {[%emt 0:00:06]} Kf7 {[%emt 0:00:00]} 97. Nf6 {[%emt 0:00:04]} Rb5+ {[%emt 0:00:00]} 98. Ke4 {[%emt 0:00:06]} Rb4+ {[%emt 0:00:00]} 99. Ke5 {[%emt 0:00:06]} Rb1 {[%emt 0:00:00]} 100. Ra7+ {[%emt 0:00:51]} Kg6 {[%emt 0:00:00]} 101. Rc7 {[%emt 0:00:14]} Ra1 {[%emt 0:00:00]} 102. Rb7 {[%emt 0:00:04]} Ra2 {[%emt 0:00:00]} 103. Rb6 {[%emt 0:00:34]} Kf7 {[%emt 0:00:00]} 104. Rb5 {[%emt 0:00:05]} Rh2 {[%emt 0:00:00]} 105. Rb1 {[%emt 0:00:33]} Ra2 {[%emt 0:00:00]} 106. Rf1 {[%emt 0:00:03]} Kg6 {[%emt 0:00:00]} 107. Rf3 {[%emt 0:00:37]} Ra1 {[%emt 0:00:00]} 108. Rf2 {[%emt 0:00:04]} Rb1 {[%emt 0:00:00]} 109. Re2 {[%emt 0:00:21]} Rb8 {[%emt 0:00:00]} 110. Rg2+ {[%emt 0:00:07]} Kf7 {[%emt 0:00:00]} 111. Nd5 {[%emt 0:00:06]} Re8+ {[%emt 0:00:00]} 112. Kf5 {[%emt 0:00:11]} Re1 {[%emt 0:00:00]} 113. Rf2 {[%emt 0:00:06]} Ke8 {[%emt 0:00:00]} 114. Nf6+ {[%emt 0:00:07]} Ke7 {[%emt 0:00:00]} 115. Ra2 {[%emt 0:00:03]} 1/2-1/2

[Event "Sardinia World Festival-A 2024"]
[Site "Orosei"]
[Date "2024.04.29"]
[Round "3.15"]
[White "Chigaev, Maksim"]
[Black "Kochavi, Ori"]
[Result "1-0"]
[ECO "B12"]
[WhiteElo "2621"]
[BlackElo "2406"]
[Annotator "TA"]
[PlyCount "87"]
[EventDate "2024.04.26"]
[EventType "swiss"]
[EventCountry "ITA"]
[SourceTitle "playchess.com"]
[Source "ChessBase"]
[SourceQuality "1"]
[TimeControl "40/5400+30:1800+30"]

{[%evp 9,87,7,15,11,18,10,10,0,1,0,0,-20,64,62,145,155,158,152,160,169,174,168,216,222,208,161,171,141,266,249,267,275,327,344,345,345,433,426,430,433,456,456,456,456,452,439,423,427,407,382,372,373,6099,6123,5664,6130,5483,1898,29939,29940,29948,5535,29963,29964,29974,29975,29975,29976,29976,29977,29979,29980,29980,29981,29981,29982,29982,29983,29983,29984]} 1. e4 {[%emt 0:00:14]} c6 {[%emt 0:00:23]} 2. d4 {[%emt 0:00:08]} d5 {[%emt 0:00:04]} 3. e5 {[%emt 0:00:07]} Bf5 {[%emt 0:00:07]} 4. h4 {[%emt 0:00:09]} h5 {[%emt 0:00:52]} 5. Bd3 {[%emt 0:00:08]} Bxd3 {[%emt 0:00:04]} 6. Qxd3 {[%emt 0:00:08][%cal Oe5e6]} Qa5+ {[%emt 0:00:02]} 7. Nd2 {[%emt 0:00:10][%cal Oe5e6] Threatens to win with e6!} e6 {[%emt 0:00:13]} 8. Ne2 {[%emt 0:00:07][%cal Bg1e2,Be2c3,Bc3b5][%mdl 32] The position is equal.} Qa6 {[%emt 0:05:38]} 9. c4 {[%emt 0:00:07]} Ne7 {[%emt 0:02:05]} 10. O-O {[%emt 0:02:22] [#]} c5 {[%emt 0:04:46]} 11. Nc3 $1 $14 {[%emt 0:06:30]} dxc4 {[%emt 0:21:53]} ({Better is} 11... Qc6 $14) 12. Nxc4 $16 {[%emt 0:00:35]} Nf5 {[%emt 0:00:12] Wards off Nd6+} 13. d5 {[%emt 0:02:27] Black must now prevent Bg5. White is more active.} Be7 {[%emt 0:04:33]} 14. a4 {[%emt 0:03:26]} O-O {[%emt 0:19:28]} 15. Nb5 {[%emt 0:01:59]} Rc8 {[%emt 0:00:11] [#] Against Nc7} (15... Bd8 $142 16. Ncd6 Nxd6 17. exd6 exd5) 16. Ncd6 $1 $18 {[%emt 0:18:35][%mdl 512]} Bxd6 {[%emt 0:05:48]} 17. dxe6 {[%emt 0:00:35]} fxe6 {[%emt 0:02:03]} 18. exd6 {[%emt 0:00:07]} Nd7 {[%emt 0:09:12]} (18... Nc6 $16 19. d7 Rf8) 19. Bg5 {[%emt 0:06:45]} Qc6 {[%emt 0:11:56]} 20. Rad1 {[%emt 0:20:44]} a6 {[%emt 0:00:38]} 21. Nc7 {[%emt 0:00:55]} Nd4 {[%emt 0:00:06]} 22. Rfe1 {[%emt 0:02:36]} Rxc7 {[%emt 0:01:00]} 23. dxc7 {[%emt 0:00:11]} Qxc7 {[%emt 0:00:02] [#]} 24. b4 $1 {[%emt 0:03:00][%mdl 512] bxc5 is the strong threat.} Ne5 {[%emt 0:02:58]} (24... Nf8 25. Rc1) 25. Qg3 {[%emt 0:01:25]} Nef3+ {[%emt 0:00:04]} 26. gxf3 {[%emt 0:00:07]} Qxg3+ {[%emt 0:00:02]} 27. fxg3 {[%emt 0:00:08]} Nxf3+ {[%emt 0:00:02]} 28. Kf2 {[%emt 0:00:08]} Nxe1 {[%emt 0:00:03]} 29. Kxe1 {[%emt 0:00:09]} cxb4 {[%emt 0:00:02][%mdl 4096] Endgame. KRB-KR} 30. a5 {[%emt 0:00:25] aiming for Rd8+.} ({Resist} 30. Rd7 b5 $18) 30... Rc8 {[%emt 0:00:20]} (30... Kh7 31. Rd4 Rc8 32. Rxb4 Rc5) 31. Rd8+ {[%emt 0:00:16]} Rxd8 {[%emt 0:00:45]} 32. Bxd8 {[%emt 0:00:02] KB-KP} Kf7 {[%emt 0:00:07]} 33. Kd2 {[%emt 0:02:33]} e5 {[%emt 0:01:17]} 34. Kd3 {[%emt 0:00:19]} Ke6 {[%emt 0:00:04]} 35. Kc4 {[%emt 0:00:08]} Kf5 {[%emt 0:00:25]} 36. Kxb4 {[%emt 0:02:39] White mates.} Kg4 {[%emt 0:00:04]} 37. Kc5 {[%emt 0:01:12]} Kxg3 {[%emt 0:00:10]} 38. Kb6 {[%emt 0:00:08]} e4 {[%emt 0:00:43]} 39. Bg5 $1 {[%emt 0:02:01]} e3 {[%emt 0:00:03]} 40. Bxe3 {[%emt 0:00:17]} Kxh4 {[%emt 0:00:17]} 41. Kxb7 {[%emt 0:30:05]} Kg3 {[%emt 0:31:34]} 42. Kxa6 {[%emt 0:00:10]} h4 {[%emt 0:00:21][%cal Bh5h4,Bh4h3][%mdl 32]} 43. Kb5 {[%emt 0:00:33]} h3 {[%emt 0:00:07]} 44. Bc5 {[%emt 0:00:11] White took control after the opening.   Weighted Error Value: White=0.01 (flawless) /Black=0.50.  Mistake:       	---       	Black=5      OK:         	White=14    	Black=10     Best:        	White=2     	Black=3      Strong:       	White=1     	---} 1-0

[Event "Sardinia World Festival-A 2024"]
[Site "Orosei"]
[Date "2024.04.29"]
[Round "3.16"]
[White "Assylov, Miras"]
[Black "Moroni, Luca Jr"]
[Result "0-1"]
[ECO "C79"]
[WhiteElo "2342"]
[BlackElo "2580"]
[Annotator "TA"]
[PlyCount "69"]
[EventDate "2024.04.26"]
[EventType "swiss"]
[EventCountry "ITA"]
[SourceTitle "playchess.com"]
[Source "ChessBase"]
[SourceQuality "1"]
[TimeControl "40/5400+30:1800+30"]

{[%evp 19,69,54,52,28,41,17,17,18,14,18,18,19,22,3,8,0,5,0,0,-7,0,-35,-36,-42,-30,-69,-28,-20,-12,-6,0,-6,21,25,30,16,77,66,149,116,139,155,210,208,201,123,128,131,247,260,239,0]} 1. e4 {[%emt 0:00:10]} e5 {[%emt 0:00:04]} 2. Nf3 {[%emt 0:00:06]} Nc6 {[%emt 0:00:03]} 3. Bb5 {[%emt 0:00:06]} a6 {[%emt 0:00:11]} 4. Ba4 {[%emt 0:00:06]} d6 {[%emt 0:01:39]} 5. d4 {[%emt 0:03:17]} exd4 {[%emt 0:04:37]} 6. Nxd4 {[%emt 0:00:48]} Bd7 {[%emt 0:00:06]} 7. O-O {[%emt 0:08:05]} Nf6 {[%emt 0:01:16]} 8. Nc3 {[%emt 0:05:19]} Be7 {[%emt 0:03:33]} 9. Nxc6 {[%emt 0:14:44]} Bxc6 {[%emt 0:00:43]} 10. Bxc6+ {[%emt 0:01:12]} bxc6 {[%emt 0:00:05]} 11. Qd4 {[%emt 0:07:51]} O-O {[%emt 0:03:05]} 12. Bf4 {[%emt 0:10:09]} Qb8 {[%emt 0:07:45]} 13. b3 {[%emt 0:10:30] The position is equal.} Nd7 {[%emt 0:04:48]} 14. Qc4 {[%emt 0:07:29]} Qb7 {[%emt 0:06:01]} 15. Rad1 {[%emt 0:00:28]} Bf6 {[%emt 0:02:28]} 16. a4 {[%emt 0:05:28]} Rfe8 {[%emt 0:05:19]} 17. Ne2 {[%emt 0:02:15]} Nb6 {[%emt 0:10:44]} 18. Qd3 {[%emt 0:00:46]} c5 {[%emt 0:00:25][%cal Bc6c5,Bc5c4][%mdl 32]} 19. Ng3 {[%emt 0:10:39] [#]} c4 $1 {[%emt 0:03:43]} 20. Qf3 {[%emt 0:00:26]} (20. bxc4 Nxa4 21. Qf3 Qc6 $17) (20. Qe2 cxb3) 20... Nd7 {[%emt 0:00:44][%cal Bb6d7,Bd7e5,Be5g4][%mdl 32]} 21. Qg4 {[%emt 0:03:53]} Qc6 {[%emt 0:02:30]} 22. Bg5 {[%emt 0:01:48]} Bxg5 {[%emt 0:07:20]} 23. Qxg5 {[%emt 0:00:06]} h6 {[%emt 0:00:23]} 24. Qe3 {[%emt 0:03:31]} Rab8 {[%emt 0:03:43]} 25. Qc3 {[%emt 0:01:18]} Ne5 {[%emt 0:01:55]} 26. b4 {[%emt 0:00:52]} g6 {[%emt 0:01:35]} (26... Qxa4 27. f4 Ng4 28. Nf5 $16 (28. Qxc4 $2 Ne3 $19)) 27. a5 {[%emt 0:01:27] Strongly threatening f4.} Qb7 {[%emt 0:05:54]} (27... Qb5 $1 $11) 28. f4 $36 {[%emt 0:00:44][%mdl 2048] White is pushing.} Qa7+ {[%emt 0:01:16]} (28... Nc6 $14) 29. Kh1 {[%emt 0:00:53]} Ng4 {[%emt 0:01:59]} 30. Rd4 $1 {[%emt 0:00:25][%cal Oh2h3,Bd1d4,Bd4c4,Bc4c7][%mdl 32] [#] And now h3! would win.} h5 {[%emt 0:02:02]} (30... Rxb4 $2 31. h3 $18) (30... Qb7 $16 {is a better defense.}) 31. h3 $1 $18 {[%emt 0:00:23]} (31. Qxc4 $2 {loses.} Ne3 32. Qd3 Nxc2 $19 (32... Nxf1 $2 33. Nxf1 Qb7 34. g3 $19)) 31... h4 {[%emt 0:00:11]} 32. hxg4 {[%emt 0:00:37]} hxg3 {[%emt 0:00:01]} 33. Rxc4 {[%emt 0:00:33]} d5 {[%emt 0:01:48]} (33... c5 $16 {was called for.}) 34. Rxc7 {[%emt 0:00:25]} (34. exd5 $2 {perishes.} Qf2 35. Rxf2 gxf2 $19) 34... Rb7 {[%emt 0:00:27]} 35. Qc6 $2 {[%emt 0:00:00][%mdl 32768] Weighted Error Value: White=0.10 (very precise) /Black=0.20 (precise) .  Missed win:     	White=1     	---        Mistake:       	---       	Black=4      Inaccurate:     	White=3     	Black=2      OK:         	White=7     	Black=13     Best:        	White=3     	---        Strong:       	White=2     	---       . Loss on time!?} (35. Rxb7 $18 Qxb7 36. exd5 (36. Qxg3 dxe4 37. f5 e3 $14)) 0-1

[Event "Sardinia World Festival-A 2024"]
[Site "Orosei"]
[Date "2024.04.29"]
[Round "3.17"]
[White "Gurel, Ediz"]
[Black "Vantika Agrawal"]
[Result "1-0"]
[ECO "E10"]
[WhiteElo "2578"]
[BlackElo "2398"]
[Annotator "TA"]
[PlyCount "87"]
[EventDate "2024.04.26"]
[EventType "swiss"]
[EventCountry "ITA"]
[SourceTitle "playchess.com"]
[Source "ChessBase"]
[SourceQuality "1"]
[TimeControl "40/5400+30:1800+30"]

{[%evp 9,87,19,8,-2,35,48,70,79,85,70,85,89,86,88,82,66,71,79,67,66,77,73,67,60,86,74,86,44,62,43,145,141,138,138,134,132,137,133,186,165,218,193,201,163,189,187,196,167,171,183,270,229,224,185,183,109,231,173,1031,1009,1003,985,12823,12824,12796,2451,12791,11038,3845,2377,2372,2177,2908,3000,12791,10991,5210,3087,1981,1708]} 1. d4 {[%emt 0:00:11]} Nf6 {[%emt 0:06:51]} 2. c4 {[%emt 0:00:11]} e6 {[%emt 0:00:21]} 3. Nf3 {[%emt 0:00:17]} h6 {[%emt 0:01:08]} 4. Nc3 {[%emt 0:02:24]} Bb4 {[%emt 0:02:06]} 5. Qc2 {[%emt 0:02:21]} c5 {[%emt 0:01:44]} 6. e4 {[%emt 0:09:02][%cal Be2e4,Be4e5][%mdl 32]} Bxc3+ {[%emt 0:33:17]} 7. bxc3 {[%emt 0:00:43]} d5 {[%emt 0:07:25]} 8. e5 {[%emt 0:05:49] White is slightly better.} (8. dxc5 dxe4 9. Nd4 e5 $11) 8... Ne4 {[%emt 0:01:44]} 9. Bd3 {[%emt 0:02:31]} Qa5 {[%emt 0:16:28]} 10. O-O {[%emt 0:04:17] aiming for cxd5.} Nc6 {[%emt 0:04:52]} 11. Bxe4 {[%emt 0:17:31]} dxe4 {[%emt 0:00:08]} 12. Qxe4 {[%emt 0:01:28]} Qxc3 {[%emt 0:04:15]} 13. Bd2 {[%emt 0:02:35]} Qxc4 {[%emt 0:16:41][%cal Rc6d4]} 14. Rfc1 {[%emt 0:00:03]} Qd5 {[%emt 0:00:00]} 15. Qg4 {[%emt 0:00:15]} Kf8 {[%emt 0:00:00]} 16. Rxc5 {[%emt 0:00:10]} Qd8 {[%emt 0:00:00] Black is weak on the dark squares} 17. Rac1 {[%emt 0:03:51]} Kg8 {[%emt 0:00:00]} 18. Qe4 {[%emt 0:07:44]} Ne7 {[%emt 0:00:00]} 19. Ba5 {[%emt 0:00:21]} Qe8 {[%emt 0:00:00] [#]} ({Black should try} 19... Qf8 $1 $14) 20. Nd2 $1 $16 {[%emt 0:00:22][%cal Bf3d2,Bd2c4,Bc4d6][%mdl 32] White is much more active. The black rooks are passive.} Nd5 {[%emt 0:01:54] [#] Threatens to win with ...b6.} 21. Nc4 {[%emt 0:00:06] And now Nd6 would win.} Bd7 {[%emt 0:00:20]} 22. Nd6 $1 {[%emt 0:00:06][%csl LRb7,LRe8]} Qe7 {[%emt 0:00:58]} 23. Nxb7 {[%emt 0:01:01]} Rb8 {[%emt 0:01:04]} (23... Qg5 $16 24. R5c2 Rb8) 24. Nd6 $36 {[%emt 0:00:05][%mdl 2048] White is in control.} g6 {[%emt 0:00:22]} (24... Qg5 {is a better defense.} 25. f3 g6) 25. h4 {[%emt 0:03:38][%cal Bh2h4,Bh4h5][%mdl 32]} Kg7 {[%emt 0:00:48]} 26. R5c2 {[%emt 0:04:31] Repels Rb2} a6 {[%emt 0:01:04]} 27. Bd2 {[%emt 0:00:52]} Rhf8 {[%emt 0:00:00]} 28. Be3 {[%emt 0:02:45]} Ba4 {[%emt 0:00:27]} 29. Rc5 {[%emt 0:00:12]} Rb2 {[%emt 0:00:31] [#]} (29... Bd7 $142 30. h5 g5) 30. h5 $1 {[%emt 0:01:43][%mdl 512]} Bd7 {[%emt 0:00:26]} 31. a3 {[%emt 0:05:10]} g5 {[%emt 0:00:32]} 32. Qd3 {[%emt 0:03:15]} (32. Rxd5 $18 exd5 33. Qxd5) 32... f5 {[%emt 0:00:32] A mistake that costs the game.} (32... Bb5 $16 {was called for.} 33. Qe4 (33. Nxb5 axb5 34. Ra1 Nxe3 $16) 33... Kg8 34. Rxd5 exd5 35. Qxd5 Bd3) 33. exf6+ {[%emt 0:00:18]} (33. Qxa6 f4 34. Qd3 fxe3 35. Qg6+ Kh8 36. Qxh6+ Kg8 37. fxe3 Nxe3 $15) 33... Qxf6 $2 {[%emt 0:00:29] [#]} (33... Rxf6 34. Nc4 (34. Qxa6 $2 {perishes.} Rb6 $19) 34... Bb5) 34. Rc7 $1 {[%emt 0:00:57][%mdl 512] White is clearly winning.} Nxc7 {[%emt 0:00:30]} 35. Rxc7 {[%emt 0:00:01][%cal Od4d5] Strongly threatening d5!} Rf7 {[%emt 0:00:31] [#]} 36. Rxd7 $1 {[%emt 0:00:11][%mdl 512]} Rxd7 {[%emt 0:00:31]} 37. Ne8+ {[%emt 0:00:05]} (37. Qxa6 $2 {too greedy.} Qe7 38. Ne4 Rb1+ 39. Kh2 g4 $19) 37... Kf7 {[%emt 0:00:28]} 38. Nxf6 {[%emt 0:00:05]} Kxf6 {[%emt 0:00:20]} 39. Qg6+ {[%emt 0:00:22]} Ke7 {[%emt 0:00:31]} 40. Qxh6 {[%emt 0:00:06]} Kd6 {[%emt 0:00:41]} 41. Qxg5 {[%emt 0:30:06][%csl Gd4,Ge3][%cal Rg5c5]} Rb1+ {[%emt 0:03:03]} 42. Kh2 {[%emt 0:00:00]} Rb5 {[%emt 0:00:36] Dodges Qc5+} 43. Bf4+ {[%emt 0:00:00]} Kc6 {[%emt 0:00:07]} 44. Be5 {[%emt 0:00:00] Weighted Error Value: White=0.18 (very precise) /Black=0.24 (precise) .  Mistake:       	White=1     	Black=6      Inaccurate:     	White=1     	Black=1      OK:         	White=14    	Black=10     Best:        	White=2     	Black=4      Strong:       	White=1     	---        Brilliant:      	White=1     	---} 1-0